Cogmind - Beta 13 @@@ ROGUE MODE // 2024.08.04 @ 15:45:46 Player: ZowhanFlame Result: Destroyed by YI-UF0 with YI-UF0's Doublenader Performance ------------- Evolutions (0) 0 Regions Visited (2) 400 Robots Destroyed (2) 10 Value Destroyed (21) 21 Prototype IDs (0) 0 Alien Tech Used (0) 0 Bonus (0) 0 TOTAL SCORE: 431 Bonus ------- None Cogmind --------- Core Integrity 0/250 Matter 260/300 Energy 80/250 System Corruption 0% Temperature Cool (0) Movement Walking (400) Ox4 Location -10/Mines Parts ------- > --- POWER (1) -------- Ion Engine > --- PROPULSION (2) --- Aluminum Leg > --- UTILITY (2) ------ High-capacity Storage Unit Propulsion Shielding > --- WEAPON (2) ------- Medium Laser > --- INVENTORY (20) --- Small Storage Unit Structural Scanner Propulsion Shielding Medium Laser Welding Torch Peak State ------------ > --- POWER ------------ Ion Engine > --- PROPULSION ------- Light Treads Light Treads > --- UTILITY ---------- High-capacity Storage Unit Visual Processing Unit > --- WEAPON ----------- Medium Laser Assault Rifle > --- INVENTORY -------- Ion Engine Aluminum Leg Small Storage Unit Medium Laser Medium Laser [Rating: 8] Favorites ----------- Power Ion Engine Engine Ion Engine Propulsion Light Treads Treads Light Treads Leg Aluminum Leg Utility High-capacity Storage Unit Device Sensor Array Storage High-capacity Storage Unit Processor Visual Processing Unit Protection Propulsion Shielding Weapon Medium Laser Energy Gun Medium Laser Ballistic Gun Assault Rifle Launcher Grenade Launcher Build | -11 -10 -10 ------- Run | Yrd Mat Min Slots Evolved . | . . . Power . | . . . Propulsion . | . . . Utility . | . . . Weapon . | . . . Parts Attached 16 | 7 4 5 Power 2 | 1 . 1 Engine 2 | 1 . 1 Core . | . . . Reactor . | . . . Propulsion 4 | 3 . 1 Treads 2 | 2 . . Leg 2 | 1 . 1 Wheel . | . . . Hover . | . . . Flight . | . . . Utility 6 | 1 4 1 Device 1 | . 1 . Storage 3 | 1 2 . Processor 1 | . 1 . Hackware . | . . . Protection 1 | . . 1 Artifact . | . . . Weapon 4 | 2 . 2 Energy Gun 2 | 1 . 1 Energy Cannon . | . . . Ballistic Gun 1 | 1 . . Ballistic Cannon . | . . . Launcher 1 | . . 1 Special Weapon . | . . . Impact Weapon . | . . . Slashing Weapon . | . . . Piercing Weapon . | . . . Special Melee Weapon . | . . . Unidentified Prototypes . | . . . Parts Lost 7 | . . 7 Power 1 | . . 1 Propulsion 2 | . . 2 Utility 1 | . . 1 Weapon 3 | . . 3 Highest Loss Streak 7 | . . 7 To Critical Strikes . | . . . Average Slot Usage (%) 97 | . 98 96 Engine 13 | . 14 13 Treads 27 | . 28 26 Device 9 | . 6 12 Storage 16 | . 19 14 Energy Gun 14 | . 14 14 Ballistic Gun 13 | . 14 13 Naked Turns . | . . . Heaviest Build 54 | 14 54 51 Greatest Support 40 | 40 40 40 Greatest Overweight (x) 5 | 3 1 5 Average Overweight (x) . | . . 1 Largest Inventory Capacity 20 | 8 20 20 Average Capacity 18 | 7 19 20 Most Carried 10 | 4 9 10 Average Carried 7 | 2 5 9 Final Capacity 20 | 8 20 20 Final Carried 9 | 3 9 5 Class Distribution -------------------- 100% | Mutant Dominant Class ---------------- Mutant | -10/Materials Mutant | -10/Mines Resources | -11 -10 -10 ----------- Run | Yrd Mat Min Matter Collected 322 | 194 43 85 Remotely . | . . . Salvage Created 43 | . 43 . Parts 7 | . 7 . Haulers Intercepted . | . . . Recyclers Shooed . | . . . Parts Field Recycled . | . . . Retrieved Matter . | . . . Parts Self-Destructed . | . . . Prevented . | . . . Kills | -11 -10 -10 ------- Run | Yrd Mat Min Combat Hostiles Destroyed . | . . . Classes Destroyed 2 | . 2 . Builder 1 | . 1 . Watcher 1 | . 1 . Best Kill Streak 1 | . 1 . Combat Bots Only . | . . . Max Kills in Single Turn 1 | . 1 . Gunslinging . | . . . Exploded . | . . . Melee . | . . . Uniques/NPCs Destroyed . | . . . Combat | -11 -10 -10 -------- Run | Yrd Mat Min Hostile Shots Fired 34 | . . 34 Missed 6 | . . 6 Damage Taken 991 | . 19 972 Core 254 | . 19 235 Absorbed by Shields . | . . . Redirected to Shielding 13 | . . 13 Core Remaining (%) 100 | 100 . . Volleys Fired 9 | . 4 5 Largest 2 | . 2 2 Hottest 70 | . 70 70 Shots Fired 14 | . 8 6 Gun 14 | . 8 6 Cannon . | . . . Launcher . | . . . Special . | . . . Kinetic 6 | . 4 2 Thermal 8 | . 4 4 Explosive . | . . . Electromagnetic . | . . . Robot Hit Streak 3 | . 3 2 Robot Miss Streak 2 | . 1 2 Penetration Max . | . . . Secondary Targets . | . . . Shots Hit Robots 9 | . 6 3 Core Hits 2 | . 2 . Critical Kills . | . . . Critical Parts Destroyed . | . . . Critical Strikes . | . . . Melee Attacks . | . . . Impact . | . . . Slashing . | . . . Piercing . | . . . Sneak Attacks . | . . . Combat Hostiles . | . . . Follow-up Attacks . | . . . Damage Inflicted 109 | . 73 36 Guns 109 | . 73 36 Cannons . | . . . Explosions . | . . . Melee . | . . . Ramming . | . . . Kinetic 46 | . 34 12 Thermal 63 | . 39 24 Explosive . | . . . Electromagnetic . | . . . Impact . | . . . Slashing . | . . . Piercing . | . . . Highest Corruption . | . . . Average Corruption . | . . . Corruption Purged . | . . . Corruption Blocked . | . . . Overload Shots . | . . . Overflow Damage . | . . . Projectiles . | . . . Explosions . | . . . Melee . | . . . Knockbacks . | . . . Impact . | . . . Kinetic . | . . . Secondary . | . . . Self-Inflicted Damage . | . . . Shots . | . . . Rammed . | . . . Targets Rammed . | . . . Kicked . | . . . Crushed . | . . . Highest Temperature 9 | . 9 9 Average Temperature 6 | . 6 6 Received Heat Transfer . | . . . Siege Activations . | . . . Robots Corrupted . | . . . Combat Hostiles . | . . . Parts Fried . | . . . Impact Corruptions . | . . . Robots Melted . | . . . Combat Hostiles . | . . . Parts Melted . | . . . Heat Transferred 185 | . 111 74 Parts Sabotaged . | . . . Parts Stolen . | . . . Parts Stripped . | . . . Power Chain Reactions . | . . . Alert | -11 -10 -10 ------- Run | Yrd Mat Min Peak Influence 27 | . 27 25 Initial 10 | . . 10 Average 12 | . 16 10 Maximum Alert Level . | . . . Low Security (%) 100 | 100 100 100 Level 1 . | . . . Level 2 . | . . . Level 3 . | . . . Level 4 . | . . . Level 5 . | . . . High Security . | . . . Max Security . | . . . Squads Dispatched 1 | . 1 . Investigation . | . . . Extermination . | . . . Reinforcement 1 | . 1 . Assault . | . . . Garrison . | . . . Intercept . | . . . Searches Triggered . | . . . Construction Impeded . | . . . Haulers Reinforced . | . . . Active Scanning Responses . | . . . Cargo Convoy Interrupts . | . . . Stealth | -11 -10 -10 --------- Run | Yrd Mat Min Distress Signals . | . . . Communications Jammed . | . . . Distress Signals . | . . . Times Spotted 4 | . 3 1 Peak Tracking Total 1 | . 1 1 Tactical Retreats . | . . . Traps | -11 -10 -10 ------- Run | Yrd Mat Min Traps Triggered 1 | . 1 . Indirectly . | . . . Trap Hack Attempts . | . . . Triggered . | . . . Disarmed . | . . . Reprogrammed . | . . . Reused . | . . . Traps Extracted . | . . . Installed . | . . . Triggered . | . . . Machines | -11 -10 -10 ---------- Run | Yrd Mat Min Machines Disabled . | . . . Max in Single Turn . | . . . Machines Repaired . | . . . Machines Dismantled . | . . . Machines Sabotaged . | . . . Overloaded Fab Kills . | . . . Hacking | -11 -10 -10 --------- Run | Yrd Mat Min Machines Accessed 1 | . 1 . Terminals 1 | . 1 . Fabricators . | . . . Repair Stations . | . . . Recycling Units . | . . . Scanalyzers . | . . . Garrison Access . | . . . Total Hacks 2 | . 2 . Successful . | . . . Failed 2 | . 2 . Catastrophic . | . . . Database Lockouts . | . . . Manual . | . . . Terminals 2 | . 2 . Fabricators . | . . . Repair Stations . | . . . Recycling Units . | . . . Scanalyzers . | . . . Garrison Access . | . . . Terminal Hacks . | . . . Fabricator Hacks . | . . . Repair Station Hacks . | . . . Recycling Unit Hacks . | . . . Scanalyzer . | . . . Garrison Access Hacks . | . . . Unauthorized Hacks . | . . . Terminals . | . . . Fabricators . | . . . Repair Stations . | . . . Recycling Units . | . . . Scanalyzers . | . . . Garrison Access . | . . . Data Cores Recovered . | . . . Used . | . . . Hacking Detections 1 | . 1 . Full Trace Events . | . . . Feedback Events . | . . . Feedback Blocked . | . . . Robot Schematics Acquired . | . . . Robots Built . | . . . Authchips . | . . . Time . | . . . Total Robot Build Rating . | . . . Part Schematics Acquired . | . . . Parts Built . | . . . Authchips . | . . . Time . | . . . Total Part Build Rating . | . . . Parts Repaired . | . . . Time . | . . . Parts Recycled . | . . . Recycled Matter . | . . . Retrieved Matter . | . . . Retrieved Components . | . . . Parts Scanalyzed . | . . . Part Schematics Acquired . | . . . Parts Damaged . | . . . Bothacking | -11 -10 -10 ------------ Run | Yrd Mat Min Used RIF Installer . | . . . Robots Hacked . | . . . Non-combat . | . . . Combat . | . . . Robot Hacks Applied . | . . . Relay Couplers Released . | . . . Fabnet Peak Effective % . | . . . Robots Rewired . | . . . Allies Hacked . | . . . Hacks Repelled . | . . . Allies | -11 -10 -10 -------- Run | Yrd Mat Min Total Allies . | . . . Largest Group . | . . . Highest-Rated Group . | . . . Highest-Rated Ally . | . . . Total Orders . | . . . Ally Attacks . | . . . Total Damage . | . . . Kills . | . . . Allies Corrupted . | . . . Allies Melted . | . . . Intel | -11 -10 -10 ------- Run | Yrd Mat Min Robot Analysis Total . | . . . Derelict Logs Recovered 1 | . . 1 Drone Launches . | . . . Drone Recoveries . | . . . Exploration | -11 -10 -10 ------------- Run | Yrd Mat Min Turns Passed 751 | 78 330 343 Spaces Moved 311 | 44 132 135 Core 6 | 6 . . Treads 303 | 37 132 134 Legs 2 | 1 . 1 Wheels . | . . . Hover . | . . . Flight . | . . . Fastest Speed 50 | 50 160 240 Average Speed 224 | 148 232 241 Slowest Speed 470 | 200 240 470 Overloaded Moves . | . . . Propulsion Burnouts . | . . . Robots Hopped . | . . . Cave-ins Triggered . | . . . Exploration Rate (%) 22 | 3 28 35 Regions Visited 2 Branch Regions 1 Pre-discovered Areas 1 | . . 1 Known Exits Taken . | . . . Unknown Exits Taken 2 | 1 1 . Scrap Searched 1 | . . 1 Spaces Dug . | . . . Terrain Destroyed . | . . . Melee . | . . . Projectile . | . . . AOE . | . . . Terrain Rammed . | . . . Walls Destroyed . | . . . Machines Disabled . | . . . Actions | -11 -10 -10 --------- Run | Yrd Mat Min Total 348 | 54 148 146 Wait 1 | . 1 . Move 309 | 43 131 135 Hop . | . . . Pick Up 12 | 4 7 1 Fast Attach 6 | 5 1 . Attach 7 | 1 1 5 Detach 1 | . 1 . Swap 3 | 1 2 . Drop . | . . . Fire 9 | . 4 5 Melee . | . . . Ram . | . . . Kick . | . . . Crush . | . . . Escape Stasis . | . . . Rewire . | . . . Trap . | . . . Miscellaneous . | . . . Route ------- -11/Scrapyard -10/Materials -10/Mines History --------- Turn | Location | Event 24 | -11/Scrapyard | Discovered new exit (range 15) 79 | -11/Scrapyard | Entered Materials 315 | -10/Materials | Build established: Mutant 369 | -10/Materials | Discovered new exit (range 12) 409 | -10/Materials | Entered Mines 486 | -10/Mines | Learned location of Storage (-8) 734 | -10/Mines | Core integrity fell below 50% 747 | -10/Mines | Core integrity fell below 20% 752 | -10/Mines | Destroyed by YI-UF0 with YI-UF0's Doublenader Last Messages --------------- 00682_ Acquired 36 matter. 00682_ U-05 Engineer builds a Wall. 00685_ The unstable cave ceiling collapses. 00686_ U-05 Engineer lays Concrete. 00691_ U-05 Engineer builds a Wall. 00692_ The unstable cave ceiling collapses. 00693_ U-05 Engineer destroyed. 00699_ The unstable cave ceiling collapses. 00706_ Sensor Array destroyed. 00713_ The unstable cave ceiling collapses. 00731_ Lgt. Treads destroyed. 00732_ YI-UF0 mumbles something. 00733_ Med. Laser destroyed. 00735_ YI-UF0 mumbles something. 00735_ Assault Rifle destroyed. 00735_ Lgt. Treads destroyed. 00738_ The unstable cave ceiling collapses. 00746_ Grenade Launcher destroyed. 00746_ Ion Engine destroyed. 00751_ The unstable cave ceiling collapses. Map ----- +----------------------------------------------------+ | ??# ## ##????###""## ##?????????? | | ??# #????# X ##????????? | | ??# #????# #????????? | | ??# ##???## #????????? | | ??## ##????# ##????????? | | ???### ##?????# ### #?????????? | | ?????# ##??????## ##?# #?????????? | | ?????# ##???????## #??# #??? ##???? | | ?????# ##???????## #??# ## ### ? | | ?????## ##??###### #### | | ??????# ##?# | | ??????# ### | | ??????## ######## | | ???????### #####??????? # | | ?????????### #??????????? ## #? | | ???????????# #??????????? #??# #? | | ???????????# #??????????? ?????? #?? | | ???????????# #####??????? ??????? ##?? | | ??????????## ### ?????????????? | | ?????????## #?????????????? | | ????????## #??????????????? | | ????##### ### #??????????????? | | ???## #?? ##??????????????? | | ??## ##??????????????????? | | ??# ##?????????????????? | | ??# @ #?????????????????? | | ??# # ##????????????????? | | ??# ## #????????????????? | | ??# ###### #????????????????? | | ??# ##????????????????? | | ??# ##########??????? | | ??# ###### # # #??????? | | ??# #????# # g ## # #??????? | | ?# #????# #??????? | | ?# ##????# # #??????? | | ?## ##?????## ### # # #??????? | | ??###????????#####?# ## #??????? | | ????????????????????## ##??????? | | ?????????????????????? # #??????? | | ?????????????????????? #??????? | | ??????????????????????# # #??????? | | ??????????????????????? ##??????? | | ???????????????????????# #???????? | | ???????????????????????## #???????? | | ????????????????????????# ##???????? | | ????????????????????????# # ????????? | | ???????????????????????? ????????? | | ????????????????????????# ???????? | | ????????????????????????# %# ???????? | | ????????????????????????# = ??????? | +----------------------------------------------------+ Best States ------------- Heat Dissipation 25 Energy Generation 10 Energy Capacity 250 Matter Stores 300 Matter Capacity 300 Sight Range 18 Robot Scan Range 14 Terrain Scan Density 10 Propulsion Shielding 33 Evasion (%) 40 Recoil Reduction 2 Item Schematics ----------------- None Robot Schematics ------------------ None Fabricated ------------ Nothing Alien Tech Used ----------------- None Achievements -------------- None Challenges ------------ None Game ------ Seed SwordSmallMatter Manual? 0 Play Time 00:16:42 Cumulative 14.6 hours Start 2024.08.04 @ 15:24:40 End 2024.08.04 @ 15:45:46 Sessions 1 Manual Loads 0 Difficulty Rogue Special Mode None Game No. 13 Rogue 13 Adventurer 0 Explorer 0 Win Type - Total 0 Types 0/0/0/0/0/0/0/0/0 Lore% 8 Gallery% 20 Achievement% 16 Wizard Run 0 Options --------- Layout 1 ASCII 0 Keyboard 1 Movement Numpad Keybinds 0 Fullscreen 1 Font 32/SmallcapsGlow Map View 50x35 Zoom Use 0% Tactical HUD 1 Map Filters NONE Filters NONE Steam 1 RUN: 9af4f4da-9b13-4776-8b76-1a3d57d3674b